[Event "Late-Titled-Tuesday-Blitz-October-17-2023"]
[Site "Chess.com"]
[Date "2023.10.17"]
[Round "6"]
[White "VincentKeymer"]
[Black "Genghis_K"]
[Result "1-0"]
[WhiteElo "3087"]
[BlackElo "2851"]
[TimeControl "180+1"]
[EndTime "15:05:58 PDT"]
[Termination "VincentKeymer won by checkmate"]

1. Nf3 {[%clk 0:03:00.9]} 1... Nf6 {[%clk 0:02:55.9]} 2. c4 {[%clk 0:03:01.1]}
2... e6 {[%clk 0:02:56.3]} 3. Nc3 {[%clk 0:03:01.6]} 3... d5 {[%clk 0:02:55.8]}
4. e3 {[%clk 0:03:02.2]} 4... c5 {[%clk 0:02:48.4]} 5. cxd5 {[%clk 0:03:02.2]}
5... exd5 {[%clk 0:02:48.4]} 6. d4 {[%clk 0:03:02.8]} 6... Nc6 {[%clk
0:02:47.9]} 7. Bb5 {[%clk 0:03:03.4]} 7... Bd6 {[%clk 0:02:45.3]} 8. dxc5 {[%clk
0:03:02.7]} 8... Bxc5 {[%clk 0:02:45.3]} 9. O-O {[%clk 0:03:03.4]} 9... O-O
{[%clk 0:02:45.7]} 10. b3 {[%clk 0:03:02.1]} 10... a6 {[%clk 0:02:32.8]} 11. Be2
{[%clk 0:03:00.7]} 11... d4 {[%clk 0:02:29]} 12. Na4 {[%clk 0:02:42.1]} 12...
Ba7 {[%clk 0:02:28.3]} 13. exd4 {[%clk 0:02:42.7]} 13... Nxd4 {[%clk 0:02:25.8]}
14. Bb2 {[%clk 0:02:43.4]} 14... Nxe2+ {[%clk 0:02:21.7]} 15. Qxe2 {[%clk
0:02:44.3]} 15... Re8 {[%clk 0:02:21.9]} 16. Rad1 {[%clk 0:02:40.2]} 16... Bd7
{[%clk 0:02:13.6]} 17. Qc2 {[%clk 0:02:23.7]} 17... Qc8 {[%clk 0:02:07.5]} 18.
Qb1 {[%clk 0:02:04]} 18... Ne4 {[%clk 0:01:48.6]} 19. Bd4 {[%clk 0:02:03.7]}
19... Bg4 {[%clk 0:01:32.9]} 20. Bxa7 {[%clk 0:01:58.7]} 20... Rxa7 {[%clk
0:01:28]} 21. Rfe1 {[%clk 0:01:16.3]} 21... b5 {[%clk 0:01:03.6]} 22. Rxe4
{[%clk 0:00:49]} 22... Rxe4 {[%clk 0:01:03.6]} 23. Qxe4 {[%clk 0:00:48.7]} 23...
Bxf3 {[%clk 0:01:04.1]} 24. Qxf3 {[%clk 0:00:39.4]} 24... bxa4 {[%clk
0:01:04.3]} 25. Qc6 {[%clk 0:00:39.7]} 25... Rc7 {[%clk 0:00:51.1]} 26. Qxa4
{[%clk 0:00:39.7]} 26... g6 {[%clk 0:00:46.1]} 27. g3 {[%clk 0:00:35.6]} 27...
h5 {[%clk 0:00:45.3]} 28. h4 {[%clk 0:00:34.2]} 28... Rc2 {[%clk 0:00:39]} 29.
Re1 {[%clk 0:00:21.9]} 29... Qf5 {[%clk 0:00:35.7]} 30. Re8+ {[%clk 0:00:18]}
30... Kh7 {[%clk 0:00:17.1]} 31. Qd4 {[%clk 0:00:18.9]} 31... f6 {[%clk
0:00:17.6]} 32. Qa7+ {[%clk 0:00:18.6]} 32... Kh6 {[%clk 0:00:16.3]} 33. Rh8#
{[%clk 0:00:18]} 1-0

[Event "Late-Titled-Tuesday-Blitz-October-17-2023"]
[Site "Chess.com"]
[Date "2023.10.17"]
[Round "6"]
[White "Real_taiatai"]
[Black "johnmez"]
[Result "1-0"]
[WhiteElo "2443"]
[BlackElo "2279"]
[TimeControl "180+1"]
[EndTime "15:06:02 PDT"]
[Termination "Real_taiatai won on time"]

1. d4 {[%clk 0:02:58.3]} 1... e6 {[%clk 0:02:45.3]} 2. Nf3 {[%clk 0:02:53.4]}
2... Nf6 {[%clk 0:02:45.7]} 3. c4 {[%clk 0:02:50.1]} 3... c5 {[%clk 0:02:45.5]}
4. d5 {[%clk 0:02:49]} 4... exd5 {[%clk 0:02:45.9]} 5. cxd5 {[%clk 0:02:49.9]}
5... d6 {[%clk 0:02:45.3]} 6. Nc3 {[%clk 0:02:50.4]} 6... g6 {[%clk 0:02:44.9]}
7. h3 {[%clk 0:02:44.8]} 7... Bg7 {[%clk 0:02:44.4]} 8. e4 {[%clk 0:02:44.3]}
8... O-O {[%clk 0:02:44]} 9. Be2 {[%clk 0:02:43.8]} 9... Re8 {[%clk 0:02:41.4]}
10. Nd2 {[%clk 0:02:43.6]} 10... Na6 {[%clk 0:02:33.9]} 11. O-O {[%clk
0:02:42.5]} 11... Nc7 {[%clk 0:02:31.5]} 12. a4 {[%clk 0:02:42.3]} 12... b6
{[%clk 0:02:25.2]} 13. Qc2 {[%clk 0:02:41.8]} 13... a6 {[%clk 0:02:13.4]} 14.
Nc4 {[%clk 0:02:40]} 14... Rb8 {[%clk 0:02:09.8]} 15. Bf4 {[%clk 0:02:39.1]}
15... Nh5 {[%clk 0:01:59.3]} 16. Bxd6 {[%clk 0:02:37.5]} 16... b5 {[%clk
0:01:57.6]} 17. axb5 {[%clk 0:02:34]} 17... axb5 {[%clk 0:01:56.9]} 18. Bxc7
{[%clk 0:02:25.6]} 18... Qxc7 {[%clk 0:01:56.9]} 19. Na5 {[%clk 0:02:21.4]}
19... c4 {[%clk 0:01:28.7]} 20. Nc6 {[%clk 0:02:18.8]} 20... Rb6 {[%clk
0:01:24.6]} 21. Ra7 {[%clk 0:02:15.9]} 21... Qd6 {[%clk 0:01:24.3]} 22. Bxh5
{[%clk 0:02:14]} 22... gxh5 {[%clk 0:01:19.3]} 23. Rd1 {[%clk 0:01:58.6]} 23...
Qg6 {[%clk 0:01:01.8]} 24. Ne7+ {[%clk 0:01:57.4]} 24... Rxe7 {[%clk 0:00:57.8]}
25. Rxe7 {[%clk 0:01:58.3]} 25... Bxh3 {[%clk 0:00:57.6]} 26. Re8+ {[%clk
0:01:50.8]} 26... Bf8 {[%clk 0:00:56.8]} 27. f4 {[%clk 0:01:47.2]} 27... Kg7
{[%clk 0:00:38.7]} 28. Qf2 {[%clk 0:01:40.4]} 28... Bc5 {[%clk 0:00:36.8]} 29.
Rd4 {[%clk 0:01:35]} 29... Bxg2 {[%clk 0:00:20.3]} 30. Qxg2 {[%clk 0:01:33.6]}
30... Qxg2+ {[%clk 0:00:19.4]} 31. Kxg2 {[%clk 0:01:33.5]} 31... Bxd4 {[%clk
0:00:17.7]} 32. e5 {[%clk 0:01:33.5]} 32... b4 {[%clk 0:00:16.1]} 33. Nd1 {[%clk
0:01:25.5]} 33... Rg6+ {[%clk 0:00:08.2]} 34. Kf3 {[%clk 0:01:24.8]} 34... Rg1
{[%clk 0:00:08]} 35. Ne3 {[%clk 0:01:17.5]} 35... Bxb2 {[%clk 0:00:06]} 36. Nxc4
{[%clk 0:01:16.7]} 36... Bd4 {[%clk 0:00:05.3]} 37. Nd6 {[%clk 0:01:16.4]} 37...
b3 {[%clk 0:00:04.4]} 38. Ke4 {[%clk 0:01:10.6]} 38... Bc3 {[%clk 0:00:03.5]}
39. Nf5+ {[%clk 0:00:49.8]} 1-0

[Event "Late-Titled-Tuesday-Blitz-October-17-2023"]
[Site "Chess.com"]
[Date "2023.10.17"]
[Round "6"]
[White "Vojtap"]
[Black "Laico"]
[Result "0-1"]
[WhiteElo "2216"]
[BlackElo "2420"]
[TimeControl "180+1"]
[EndTime "15:06:02 PDT"]
[Termination "Laico won on time"]

1. e4 {[%clk 0:03:00.9]} 1... e6 {[%clk 0:02:59.5]} 2. d4 {[%clk 0:02:59.9]}
2... d5 {[%clk 0:03:00.4]} 3. Nc3 {[%clk 0:02:59.5]} 3... Nf6 {[%clk 0:03:00.3]}
4. e5 {[%clk 0:02:59.8]} 4... Nfd7 {[%clk 0:03:00.1]} 5. f4 {[%clk 0:03:00.5]}
5... c5 {[%clk 0:03:00.8]} 6. Nf3 {[%clk 0:03:01.1]} 6... Nc6 {[%clk 0:03:01.5]}
7. Be3 {[%clk 0:03:01.5]} 7... cxd4 {[%clk 0:03:02.4]} 8. Nxd4 {[%clk
0:03:01.6]} 8... Bc5 {[%clk 0:03:03.3]} 9. Qd2 {[%clk 0:02:57]} 9... O-O {[%clk
0:03:03.5]} 10. O-O-O {[%clk 0:02:47.2]} 10... a6 {[%clk 0:03:03.4]} 11. Nce2
{[%clk 0:02:39.8]} 11... Qe7 {[%clk 0:02:54.5]} 12. g4 {[%clk 0:02:32.6]} 12...
f6 {[%clk 0:02:53.3]} 13. f5 {[%clk 0:02:26.9]} 13... Ndxe5 {[%clk 0:02:48.4]}
14. fxe6 {[%clk 0:02:16.6]} 14... Nc4 {[%clk 0:02:27.5]} 15. Qc3 {[%clk
0:02:01.2]} 15... Bxe6 {[%clk 0:02:25.8]} 16. Bg2 {[%clk 0:01:30.8]} 16... Bb4
{[%clk 0:01:59.9]} 17. Qb3 {[%clk 0:01:20.4]} 17... N4a5 {[%clk 0:01:50]} 18.
Qa4 {[%clk 0:00:51.9]} 18... Nxd4 {[%clk 0:01:28.8]} 19. Rxd4 {[%clk 0:00:52.6]}
19... Nc6 {[%clk 0:01:06.4]} 20. Rxd5 {[%clk 0:00:10.3]} 20... Bxg4 {[%clk
0:01:00.1]} 21. Qb3 {[%clk 0:00:03.4]} 21... Kh8 {[%clk 0:00:34.1]} 22. Nd4
{[%clk 0:00:03.2]} 22... Bc5 {[%clk 0:00:25]} 23. Nxc6 {[%clk 0:00:01.1]} 23...
Bxe3+ {[%clk 0:00:24.6]} 24. Kb1 {[%clk 0:00:01.3]} 24... bxc6 {[%clk
0:00:24.4]} 25. Rd3 {[%clk 0:00:01.2]} 25... Bh6 {[%clk 0:00:12.1]} 0-1

[Event "Late-Titled-Tuesday-Blitz-October-17-2023"]
[Site "Chess.com"]
[Date "2023.10.17"]
[Round "6"]
[White "Estrategia_vs_Tactica"]
[Black "protectiago"]
[Result "1-0"]
[WhiteElo "2249"]
[BlackElo "2080"]
[TimeControl "180+1"]
[EndTime "15:06:02 PDT"]
[Termination "Estrategia_vs_Tactica won on time"]

1. d4 {[%clk 0:02:54.8]} 1... Nf6 {[%clk 0:02:59.4]} 2. Nf3 {[%clk 0:02:55.1]}
2... g6 {[%clk 0:02:59.5]} 3. g3 {[%clk 0:02:55.4]} 3... Bg7 {[%clk 0:02:59.7]}
4. Bg2 {[%clk 0:02:55.9]} 4... O-O {[%clk 0:03:00.2]} 5. O-O {[%clk 0:02:56.6]}
5... d5 {[%clk 0:02:58.8]} 6. c4 {[%clk 0:02:56.9]} 6... c6 {[%clk 0:02:58]} 7.
Nc3 {[%clk 0:02:56.6]} 7... Bg4 {[%clk 0:02:55.3]} 8. Ne5 {[%clk 0:02:56.2]}
8... Be6 {[%clk 0:02:54]} 9. b3 {[%clk 0:02:49.3]} 9... dxc4 {[%clk 0:02:46.3]}
10. bxc4 {[%clk 0:02:49.1]} 10... Nfd7 {[%clk 0:02:45.2]} 11. Nxd7 {[%clk
0:02:46.4]} 11... Qxd7 {[%clk 0:02:39.1]} 12. Be3 {[%clk 0:02:28.2]} 12... Bxc4
{[%clk 0:02:36.2]} 13. Qa4 {[%clk 0:02:27.9]} 13... b5 {[%clk 0:02:25.2]} 14.
Qa5 {[%clk 0:02:27.4]} 14... Bxd4 {[%clk 0:02:02.5]} 15. Rfd1 {[%clk 0:02:21.5]}
15... Bxc3 {[%clk 0:02:01.4]} 16. Qxc3 {[%clk 0:02:20.6]} 16... Qg4 {[%clk
0:01:41.2]} 17. Rd4 {[%clk 0:02:14.7]} 17... Qxe2 {[%clk 0:01:33.1]} 18. Re1
{[%clk 0:02:10.1]} 18... Qxa2 {[%clk 0:01:28.5]} 19. Bh6 {[%clk 0:02:09.7]}
19... f6 {[%clk 0:01:22.6]} 20. Rxe7 {[%clk 0:02:06.2]} 20... Qb1+ {[%clk
0:01:05]} 21. Re1 {[%clk 0:02:04.6]} 21... Qb3 {[%clk 0:00:40.7]} 22. Qa5 {[%clk
0:01:51.5]} 22... Na6 {[%clk 0:00:16.3]} 23. Qxa6 {[%clk 0:01:49.5]} 23... Qc3
{[%clk 0:00:16.4]} 24. Qa1 {[%clk 0:01:42.9]} 24... Qxa1 {[%clk 0:00:15.5]} 25.
Rxa1 {[%clk 0:01:42.7]} 25... Rfe8 {[%clk 0:00:15.1]} 26. Bxc6 {[%clk
0:01:41.3]} 26... Rad8 {[%clk 0:00:14.3]} 27. Bxe8 {[%clk 0:01:31.6]} 27... Rxd4
{[%clk 0:00:11.3]} 28. Rxa7 {[%clk 0:01:30.8]} 28... Rd1+ {[%clk 0:00:10.6]} 29.
Kg2 {[%clk 0:01:31]} 29... Bd5+ {[%clk 0:00:09.1]} 30. f3 {[%clk 0:01:31.3]}
30... g5 {[%clk 0:00:07.4]} 31. Bxb5 {[%clk 0:01:26.9]} 31... g4 {[%clk
0:00:06.8]} 32. Rg7+ {[%clk 0:01:23.6]} 32... Kh8 {[%clk 0:00:07.1]} 33. Rxg4
{[%clk 0:01:23.7]} 33... Rd2+ {[%clk 0:00:07.6]} 34. Kf1 {[%clk 0:01:23.5]}
34... f5 {[%clk 0:00:04.2]} 35. Bxd2 {[%clk 0:01:20.7]} 35... fxg4 {[%clk
0:00:04.1]} 36. fxg4 {[%clk 0:01:18.7]} 36... Be6 {[%clk 0:00:04.3]} 37. h3
{[%clk 0:01:18.5]} 37... Kg7 {[%clk 0:00:04.5]} 38. Kg2 {[%clk 0:01:18.6]} 38...
Kg6 {[%clk 0:00:04.7]} 39. Bc6 {[%clk 0:01:18.9]} 39... h5 {[%clk 0:00:04.7]}
40. Be8+ {[%clk 0:01:16.4]} 40... Kg7 {[%clk 0:00:03.5]} 41. Bc3+ {[%clk
0:01:16.7]} 41... Kf8 {[%clk 0:00:03.4]} 42. Bxh5 {[%clk 0:01:16.3]} 42... Bd5+
{[%clk 0:00:03.2]} 43. Kf2 {[%clk 0:01:16.2]} 43... Ke7 {[%clk 0:00:01.9]} 44.
g5 {[%clk 0:01:17.1]} 44... Kf8 {[%clk 0:00:01.4]} 45. Bb4+ {[%clk 0:01:16.9]}
45... Kg8 {[%clk 0:00:01.5]} 46. Bf3 {[%clk 0:01:16]} 46... Kg7 {[%clk
0:00:02.3]} 47. Bxd5 {[%clk 0:01:15.5]} 1-0

[Event "Late-Titled-Tuesday-Blitz-October-17-2023"]
[Site "Chess.com"]
[Date "2023.10.17"]
[Round "6"]
[White "SCIM"]
[Black "ferdipy"]
[Result "1-0"]
[WhiteElo "2549"]
[BlackElo "2367"]
[TimeControl "180+1"]
[EndTime "15:06:05 PDT"]
[Termination "SCIM won by checkmate"]

1. e4 {[%clk 0:03:00.9]} 1... e6 {[%clk 0:02:24.2]} 2. d4 {[%clk 0:02:41.4]}
2... d5 {[%clk 0:02:25.1]} 3. e5 {[%clk 0:02:40.8]} 3... c5 {[%clk 0:02:09.3]}
4. c3 {[%clk 0:02:35.1]} 4... Nc6 {[%clk 0:02:10.2]} 5. Nf3 {[%clk 0:02:33.4]}
5... Qb6 {[%clk 0:02:06.4]} 6. Bd3 {[%clk 0:02:32.5]} 6... cxd4 {[%clk 0:02:06]}
7. O-O {[%clk 0:02:32.5]} 7... Bd7 {[%clk 0:02:06.7]} 8. Re1 {[%clk 0:02:31.7]}
8... dxc3 {[%clk 0:02:06.5]} 9. Nxc3 {[%clk 0:02:30.6]} 9... a6 {[%clk
0:02:05.2]} 10. h4 {[%clk 0:02:28]} 10... h6 {[%clk 0:02:02.7]} 11. h5 {[%clk
0:02:27.2]} 11... Nge7 {[%clk 0:02:02.7]} 12. Qe2 {[%clk 0:02:17.1]} 12... Rc8
{[%clk 0:02:00.9]} 13. Bf4 {[%clk 0:02:14.2]} 13... Qb4 {[%clk 0:01:56]} 14. Bg3
{[%clk 0:02:11.5]} 14... Qg4 {[%clk 0:01:54.3]} 15. Rac1 {[%clk 0:01:50.5]}
15... Qxh5 {[%clk 0:01:48.3]} 16. Na4 {[%clk 0:01:49.9]} 16... Nf5 {[%clk
0:01:27]} 17. Bh2 {[%clk 0:01:45.1]} 17... Bb4 {[%clk 0:01:24.1]} 18. Red1
{[%clk 0:01:35.4]} 18... O-O {[%clk 0:01:21.8]} 19. Nb6 {[%clk 0:01:33.6]} 19...
Rc7 {[%clk 0:01:17.7]} 20. a3 {[%clk 0:01:30.1]} 20... Ba5 {[%clk 0:01:15.6]}
21. Nxd7 {[%clk 0:01:28.1]} 21... Rxd7 {[%clk 0:01:16.5]} 22. Bxa6 {[%clk
0:01:23.7]} 22... Rc8 {[%clk 0:01:13.5]} 23. Bb5 {[%clk 0:01:21.3]} 23... Rdc7
{[%clk 0:01:10.4]} 24. Bf4 {[%clk 0:00:56.8]} 24... Qg4 {[%clk 0:01:07.4]} 25.
g3 {[%clk 0:00:47]} 25... Bb6 {[%clk 0:00:45.7]} 26. Kg2 {[%clk 0:00:43]} 26...
g5 {[%clk 0:00:34.7]} 27. Bd2 {[%clk 0:00:35.4]} 27... Na7 {[%clk 0:00:25.1]}
28. Rxc7 {[%clk 0:00:32.3]} 28... Rxc7 {[%clk 0:00:25.6]} 29. Bd3 {[%clk
0:00:31.7]} 29... Nd4 {[%clk 0:00:24.3]} 30. Nxd4 {[%clk 0:00:30.5]} 30... Qxd4
{[%clk 0:00:25.2]} 31. Be3 {[%clk 0:00:29]} 31... Qa4 {[%clk 0:00:16.6]} 32.
Bxb6 {[%clk 0:00:28.1]} 32... Rc8 {[%clk 0:00:14.6]} 33. Bxa7 {[%clk 0:00:26.8]}
33... Qxa7 {[%clk 0:00:14]} 34. Rh1 {[%clk 0:00:26.7]} 34... Kg7 {[%clk
0:00:13.7]} 35. Qh5 {[%clk 0:00:24.4]} 35... Qb8 {[%clk 0:00:13.2]} 36. Qxh6+
{[%clk 0:00:23.4]} 36... Kg8 {[%clk 0:00:11.8]} 37. Qh8# {[%clk 0:00:24.3]} 1-0

[Event "Late-Titled-Tuesday-Blitz-October-17-2023"]
[Site "Chess.com"]
[Date "2023.10.17"]
[Round "6"]
[White "RichardShtivelband"]
[Black "koncheto"]
[Result "1-0"]
[WhiteElo "2201"]
[BlackElo "2548"]
[TimeControl "180+1"]
[EndTime "15:06:07 PDT"]
[Termination "RichardShtivelband won on time"]

1. e4 {[%clk 0:02:57.4]} 1... c5 {[%clk 0:02:55.9]} 2. c3 {[%clk 0:02:57.1]}
2... Nf6 {[%clk 0:02:55.9]} 3. e5 {[%clk 0:02:56.7]} 3... Nd5 {[%clk 0:02:56.5]}
4. d4 {[%clk 0:02:56.7]} 4... cxd4 {[%clk 0:02:57.4]} 5. cxd4 {[%clk 0:02:57.1]}
5... e6 {[%clk 0:02:58]} 6. Nf3 {[%clk 0:02:56.7]} 6... d6 {[%clk 0:02:58.5]} 7.
Nc3 {[%clk 0:02:55.7]} 7... Nxc3 {[%clk 0:02:58.1]} 8. bxc3 {[%clk 0:02:56.6]}
8... Qc7 {[%clk 0:02:58.4]} 9. Bd2 {[%clk 0:02:43.4]} 9... Bd7 {[%clk
0:02:58.3]} 10. Bd3 {[%clk 0:02:42.6]} 10... Bc6 {[%clk 0:02:58.2]} 11. O-O
{[%clk 0:02:39.4]} 11... Nd7 {[%clk 0:02:57.8]} 12. exd6 {[%clk 0:02:37.3]}
12... Bxd6 {[%clk 0:02:57.7]} 13. h3 {[%clk 0:02:33.4]} 13... h6 {[%clk
0:02:55]} 14. Re1 {[%clk 0:02:32.5]} 14... O-O {[%clk 0:02:54.8]} 15. c4 {[%clk
0:02:30.6]} 15... Rfd8 {[%clk 0:02:49.1]} 16. Bc3 {[%clk 0:02:28.1]} 16... Nf6
{[%clk 0:02:42.5]} 17. Bc2 {[%clk 0:02:23]} 17... Bxf3 {[%clk 0:02:38.4]} 18.
Qxf3 {[%clk 0:02:22.6]} 18... Qxc4 {[%clk 0:02:38.7]} 19. Bb3 {[%clk 0:02:13.6]}
19... Qc6 {[%clk 0:02:26]} 20. Qd3 {[%clk 0:02:05.8]} 20... Rac8 {[%clk
0:02:18.9]} 21. Rac1 {[%clk 0:02:04.5]} 21... Nd5 {[%clk 0:02:14.3]} 22. Bd2
{[%clk 0:02:03.7]} 22... Qb6 {[%clk 0:02:01]} 23. Bxd5 {[%clk 0:02:01.6]} 23...
Rxc1 {[%clk 0:01:56.3]} 24. Rxc1 {[%clk 0:01:57.6]} 24... exd5 {[%clk
0:01:55.2]} 25. Qf5 {[%clk 0:01:57.6]} 25... Qxd4 {[%clk 0:01:34.9]} 26. Rc8
{[%clk 0:01:53]} 26... Qa1+ {[%clk 0:01:18.3]} 27. Bc1 {[%clk 0:01:49.9]} 27...
Rf8 {[%clk 0:01:03.1]} 28. g3 {[%clk 0:01:41.9]} 28... g6 {[%clk 0:00:38.5]} 29.
Rxf8+ {[%clk 0:01:39.7]} 29... Bxf8 {[%clk 0:00:34.9]} 30. Qc8 {[%clk
0:01:39.3]} 30... h5 {[%clk 0:00:17.3]} 31. Kg2 {[%clk 0:01:38.6]} 31... Qxa2
{[%clk 0:00:15.3]} 32. Be3 {[%clk 0:01:28.1]} 32... d4 {[%clk 0:00:13.1]} 33.
Bf4 {[%clk 0:01:20.3]} 33... Qd5+ {[%clk 0:00:13]} 34. Kh2 {[%clk 0:01:19.1]}
34... b5 {[%clk 0:00:10.5]} 35. Qb8 {[%clk 0:01:07.7]} 35... d3 {[%clk
0:00:10.3]} 36. Bd2 {[%clk 0:00:58.4]} 36... a5 {[%clk 0:00:05.4]} 37. h4 {[%clk
0:00:45.3]} 37... b4 {[%clk 0:00:04.4]} 38. Kg1 {[%clk 0:00:43.3]} 38... Qc4
{[%clk 0:00:02.6]} 39. Bf4 {[%clk 0:00:39.4]} 1-0

[Event "Late-Titled-Tuesday-Blitz-October-17-2023"]
[Site "Chess.com"]
[Date "2023.10.17"]
[Round "6"]
[White "CraiggoryC"]
[Black "sari07"]
[Result "1-0"]
[WhiteElo "2214"]
[BlackElo "2320"]
[TimeControl "180+1"]
[EndTime "15:06:11 PDT"]
[Termination "CraiggoryC won on time"]

1. e4 {[%clk 0:02:58]} 1... e5 {[%clk 0:02:59.4]} 2. Nf3 {[%clk 0:02:57.2]} 2...
Nc6 {[%clk 0:02:59.4]} 3. Bc4 {[%clk 0:02:57.5]} 3... Nf6 {[%clk 0:02:58.9]} 4.
d3 {[%clk 0:02:57.8]} 4... Bc5 {[%clk 0:02:56.5]} 5. O-O {[%clk 0:02:57.7]} 5...
O-O {[%clk 0:02:54.5]} 6. Bb3 {[%clk 0:02:53.5]} 6... d6 {[%clk 0:02:49.1]} 7.
c3 {[%clk 0:02:52.4]} 7... Bg4 {[%clk 0:02:47]} 8. Nbd2 {[%clk 0:02:49.7]} 8...
b5 {[%clk 0:02:35.3]} 9. h3 {[%clk 0:02:45.5]} 9... Bh5 {[%clk 0:02:34.7]} 10.
Re1 {[%clk 0:02:41.1]} 10... Re8 {[%clk 0:02:25.9]} 11. Nf1 {[%clk 0:02:40.1]}
11... a5 {[%clk 0:02:15.8]} 12. a4 {[%clk 0:02:32.3]} 12... b4 {[%clk
0:02:14.5]} 13. Ng3 {[%clk 0:02:29.6]} 13... Bg6 {[%clk 0:02:12.2]} 14. Be3
{[%clk 0:01:40.4]} 14... Bxe3 {[%clk 0:02:02.1]} 15. fxe3 {[%clk 0:01:25.1]}
15... Rb8 {[%clk 0:02:00.9]} 16. Rf1 {[%clk 0:01:16.2]} 16... Nh5 {[%clk
0:01:14.3]} 17. Nxh5 {[%clk 0:00:55.5]} 17... Bxh5 {[%clk 0:01:15.2]} 18. Bc4
{[%clk 0:00:25.7]} 18... bxc3 {[%clk 0:00:59.7]} 19. bxc3 {[%clk 0:00:26.6]}
19... Re7 {[%clk 0:00:33]} 20. Qe1 {[%clk 0:00:25.3]} 20... Rb2 {[%clk
0:00:28.8]} 21. Bb5 {[%clk 0:00:25.5]} 21... Na7 {[%clk 0:00:27.5]} 22. Qc1
{[%clk 0:00:24.3]} 22... Re2 {[%clk 0:00:15.7]} 23. Bc4 {[%clk 0:00:15.5]} 23...
Qb8 {[%clk 0:00:07.6]} 24. d4 {[%clk 0:00:15.6]} 24... Rb2 {[%clk 0:00:07.3]}
25. Bb5 {[%clk 0:00:16]} 25... Rxb5 {[%clk 0:00:05.3]} 26. axb5 {[%clk
0:00:15.8]} 26... Qxb5 {[%clk 0:00:06]} 27. c4 {[%clk 0:00:15.4]} 27... Qa6
{[%clk 0:00:03.5]} 28. Qc3 {[%clk 0:00:14.7]} 28... exd4 {[%clk 0:00:02.1]} 29.
exd4 {[%clk 0:00:14.6]} 29... Rxe4 {[%clk 0:00:02.2]} 30. Rxa5 {[%clk
0:00:14.5]} 1-0

[Event "Late-Titled-Tuesday-Blitz-October-17-2023"]
[Site "Chess.com"]
[Date "2023.10.17"]
[Round "6"]
[White "effefe"]
[Black "angryspacevoid"]
[Result "1-0"]
[WhiteElo "2352"]
[BlackElo "2451"]
[TimeControl "180+1"]
[EndTime "15:06:12 PDT"]
[Termination "effefe won by checkmate"]

1. d4 {[%clk 0:03:00.9]} 1... d5 {[%clk 0:02:56.7]} 2. c4 {[%clk 0:03:00.4]}
2... e6 {[%clk 0:02:53]} 3. Nc3 {[%clk 0:03:00]} 3... c5 {[%clk 0:02:51.6]} 4.
e3 {[%clk 0:02:53.7]} 4... Nf6 {[%clk 0:02:49.4]} 5. Nf3 {[%clk 0:02:53]} 5...
cxd4 {[%clk 0:02:47.8]} 6. exd4 {[%clk 0:02:52.4]} 6... Bb4 {[%clk 0:02:48.2]}
7. Be2 {[%clk 0:02:37.7]} 7... dxc4 {[%clk 0:02:46.8]} 8. Bxc4 {[%clk
0:02:38.2]} 8... O-O {[%clk 0:02:45.7]} 9. O-O {[%clk 0:02:38.8]} 9... b6 {[%clk
0:02:45.7]} 10. a3 {[%clk 0:02:36.7]} 10... Be7 {[%clk 0:02:45.1]} 11. Bf4
{[%clk 0:02:27.2]} 11... Bb7 {[%clk 0:02:44.2]} 12. Rc1 {[%clk 0:02:18.7]} 12...
Nc6 {[%clk 0:02:39.9]} 13. Qd3 {[%clk 0:02:01.9]} 13... Qd7 {[%clk 0:02:32.8]}
14. Bb5 {[%clk 0:01:47.3]} 14... Rfd8 {[%clk 0:02:30.6]} 15. Ne5 {[%clk
0:01:00.4]} 15... Nxe5 {[%clk 0:02:29.1]} 16. Bxe5 {[%clk 0:00:57.1]} 16... Bc6
{[%clk 0:02:29.1]} 17. Bxc6 {[%clk 0:00:47.2]} 17... Qxc6 {[%clk 0:02:28.8]} 18.
Nb5 {[%clk 0:00:23.9]} 18... Qe4 {[%clk 0:02:25.9]} 19. Qxe4 {[%clk 0:00:20.8]}
19... Nxe4 {[%clk 0:02:26.8]} 20. f3 {[%clk 0:00:10.7]} 20... Nd6 {[%clk
0:02:25.2]} 21. Bxd6 {[%clk 0:00:05.1]} 21... Bxd6 {[%clk 0:02:26.1]} 22. Rc6
{[%clk 0:00:04.3]} 22... Bf4 {[%clk 0:02:25.5]} 23. Rd1 {[%clk 0:00:03.8]} 23...
h6 {[%clk 0:02:25.3]} 24. g3 {[%clk 0:00:03.7]} 24... Be3+ {[%clk 0:02:25.2]}
25. Kf1 {[%clk 0:00:03.5]} 25... Rd5 {[%clk 0:02:25.9]} 26. Ke2 {[%clk
0:00:03.4]} 26... Rxb5 {[%clk 0:02:25.4]} 27. Kxe3 {[%clk 0:00:02.8]} 27... Rb4
{[%clk 0:02:26.2]} 28. axb4 {[%clk 0:00:02.6]} 28... a5 {[%clk 0:02:19.2]} 29.
b5 {[%clk 0:00:03.1]} 29... Rb8 {[%clk 0:02:18.3]} 30. Rdc1 {[%clk 0:00:04]}
30... Kh7 {[%clk 0:02:18.6]} 31. Rc8 {[%clk 0:00:04.4]} 31... Rb7 {[%clk
0:01:06.9]} 32. R1c7 {[%clk 0:00:04.8]} 32... Rb8 {[%clk 0:00:48.9]} 33. Rxb8
{[%clk 0:00:04.9]} 33... Kg6 {[%clk 0:00:47.9]} 34. Rxb6 {[%clk 0:00:04.7]}
34... Kg5 {[%clk 0:00:48.5]} 35. Ra6 {[%clk 0:00:05]} 35... Kg6 {[%clk
0:00:49.4]} 36. Rxa5 {[%clk 0:00:05.6]} 36... Kf6 {[%clk 0:00:50.1]} 37. b6
{[%clk 0:00:06.2]} 37... g5 {[%clk 0:00:49.9]} 38. b7 {[%clk 0:00:07.1]} 38...
h5 {[%clk 0:00:50.7]} 39. b8=Q {[%clk 0:00:07.2]} 39... h4 {[%clk 0:00:50.5]}
40. Qd8+ {[%clk 0:00:07.8]} 40... Kg7 {[%clk 0:00:48.3]} 41. Qxg5+ {[%clk
0:00:07.9]} 41... Kh8 {[%clk 0:00:38.4]} 42. Ra8+ {[%clk 0:00:07]} 42... Kh7
{[%clk 0:00:35.6]} 43. Rxf7# {[%clk 0:00:07.4]} 1-0